fUST/lending_fUST_20250802
["ID","MTS","AMOUNT","RATE_DAILY","PERIOD"]
[376853574,1754142633155,-500.0,0.0002437,2]
[376853576,1754142633165,-500.0,0.0002437,2]
[376853578,1754142633175,-500.0,0.0002437,2]
[376853580,1754142633184,-500.0,0.0002437,2]
[376853582,1754142633193,-500.0,0.0002437,2]
[376853584,1754142633204,-500.0,0.0002437,2]
[376853586,1754142633214,-500.0,0.0002437,2]
[376853588,1754142633224,-500.0,0.0002437,2]
[376853590,1754142633233,-336.68623529,0.0002437,2]
[376853592,1754142633243,-500.0,0.0002437,2]
[376853594,1754142633252,-500.0,0.0002437,2]
[376853596,1754142633262,-500.0,0.0002437,2]
[376853598,1754142633272,-500.0,0.0002437,2]
[376853600,1754142633281,-500.0,0.0002437,2]
[376853602,1754142633291,-181.51983919,0.0002437,2]
[376853604,1754142633301,-500.0,0.0002437,2]
[376853606,1754142633310,-442.52718706,0.0002437,2]
[376853608,1754142633319,-500.0,0.0002437,2]
[376853610,1754142633328,-430.0,0.0002437,2]
[376853612,1754142633337,-500.0,0.0002437,2]
[376853614,1754142633346,-195.66966138,0.0002437,2]
[376853616,1754142633355,-158.369,0.0002437,6]
[376853618,1754142633364,-7704.6,0.0002437,2]
[376853620,1754142633373,-51619.34735777,0.00024371,2]
[376853770,1754142638583,-7861.962421,0.00024371,2]
[376853771,1754142638595,-25111.36426626,0.00024371,2]
[376853785,1754142642227,-0.00928789,0.00024371,2]
[376853786,1754142642292,-56.75137719,0.00024371,2]
[376853787,1754142642304,-5592.18111646,0.00024371,2]
[376853788,1754142642316,-469.47107365,0.00024371,2]
[376853803,1754142645476,-1341.64666871,0.00024127,2]
[376853804,1754142645488,-1020.55924771,0.00024127,2]
[376853805,1754142645539,-380.0,0.00024127,2]
[376853816,1754142646358,-2257.79408358,0.00024127,2]
[376853817,1754142646368,-31412.14961435,0.00024371,2]
[376853818,1754142646380,-1190.66493114,0.00024371,2]
[376853820,1754142646391,-26302.73188123,0.00024371,2]
[376853821,1754142646417,-21935.13395241,0.00024371,2]
[376853822,1754142646479,-78042.36637949,0.00024371,2]
[376853826,1754142734652,1000.0,0.00027397,120]
[376853827,1754142746864,1000.0,0.00027397,120]
[376853828,1754142764575,164.052326,0.00013699,2]
[376853830,1754142775165,1000.0,0.00027397,120]
[376853831,1754142794295,1034.60832015,0.00027397,120]
[376853832,1754142830638,1852.97413865,0.00022271,2]
[376853833,1754142844641,4694.84728213,0.0002306,2]
[376853834,1754142844666,305.15271787,0.0002306,2]
[376853835,1754142861636,5000.0,0.0002306,2]
[376853836,1754142878121,5000.0,0.0002306,2]
[376853837,1754142887122,152.0,0.00027543,30]
[376853838,1754142895240,5000.0,0.0002306,2]
[376853839,1754142911637,4694.84728213,0.0002306,2]
[376853840,1754142911662,305.15271787,0.0002306,2]
[376853841,1754142927688,5000.0,0.0002306,2]
[376853843,1754142945431,5000.0,0.0002306,2]
[376853844,1754142961214,5000.0,0.0002306,2]
[376853845,1754142976933,4694.84728213,0.0002306,2]
[376853846,1754142976957,305.15271787,0.0002306,2]
[376853847,1754142993887,5000.0,0.0002306,2]
[376853848,1754143010581,5000.0,0.0002306,2]
[376853849,1754143027102,5000.0,0.0002306,2]
[376853850,1754143043834,4694.84728213,0.0002306,2]
[376853851,1754143043862,305.15271787,0.0002306,2]
[376853852,1754143053311,250.0,0.00022753,2]
[376853853,1754143060160,5000.0,0.0002306,2]
[376853854,1754143076430,5000.0,0.0002306,2]
[376853855,1754143092165,5000.0,0.0002306,2]
[376853856,1754143108567,4444.84728213,0.0002306,2]
[376853857,1754143108594,555.15271787,0.0002306,2]
[376853858,1754143125434,5000.0,0.0002306,2]
[376853859,1754143131808,1235.31609243,0.00022271,2]
[376853860,1754143141010,5000.0,0.0002306,2]
[376853861,1754143159887,5000.0,0.0002306,2]
[376853862,1754143176543,3209.5311897,0.0002306,2]
[376853863,1754143176568,1790.4688103,0.0002306,2]
[376853864,1754143182156,190.73282,0.00022935,2]
[376853865,1754143192379,5000.0,0.0002306,2]
[376853866,1754143208502,5000.0,0.0002306,2]
[376853867,1754143228660,5000.0,0.0002306,2]
[376853868,1754143245124,3018.7983697,0.0002306,2]
[376853869,1754143245155,1981.2016303,0.0002306,2]
[376853870,1754143261623,5000.0,0.0002306,2]
[376853871,1754143265386,377.08406897,0.0002306,2]
[376853872,1754143279425,5000.0,0.0002306,2]
[376853873,1754143296445,5000.0,0.0002306,2]
[376853874,1754143314645,2641.71430073,0.0002306,2]
[376853875,1754143314671,2358.28569927,0.0002306,2]
[376853876,1754143317042,172.1228338,0.00022388,2]
[376853877,1754143330615,5000.0,0.0002306,2]
[376853878,1754143347894,5000.0,0.0002306,2]
[376853879,1754143364262,5000.0,0.0002306,2]
[376853883,1754143383759,2469.59146693,0.0002306,2]
[376853884,1754143383786,2530.40853307,0.0002306,2]
[376853885,1754143400572,1206.13430783,0.0002306,2]
[376853886,1754143409327,276.5677795,0.0002306,2]
[376853887,1754143413860,10000.0,0.00022688,2]
[376853888,1754143418299,5000.0,0.0002306,2]
[376853889,1754143428756,165.0,0.00022,2]
[376853890,1754143432945,821.8893796,0.00022271,2]
[376853891,1754143432967,58.20110059,0.00022271,2]
[376853892,1754143434566,3093.3491253,0.0002306,2]
[376853893,1754143519050,168.184162,0.00027397,120]
[376853895,1754143531097,-157.76774239,0.00023152,2]
[376853896,1754143531123,-164.052326,0.00023182,2]
[376853897,1754143531143,-62.35573161,0.000232,2]
[376853898,1754143541100,16848.44977411,0.0002291,2]
[376853899,1754143541126,8051.55022589,0.0002291,2]
[376853900,1754143558995,5000.0,0.0002306,2]
[376853901,1754143575587,5000.0,0.0002306,2]
[376853903,1754143592324,1948.44977411,0.0002306,2]
[376853904,1754143592348,976.30022743,0.0002306,2]
[376853906,1754143610088,-165.46692333,0.000231,2]
[376853907,1754143629090,-151.09437211,0.000231,2]
[376853908,1754143629111,-305.79710706,0.000232,2]
[376853909,1754143695050,500.0,0.00022184,2]
[376853910,1754143699714,500.0,0.00021075,2]
[376853911,1754143704329,500.0,0.00020021,2]
[376853912,1754143709698,500.0,0.000192,2]
[376853914,1754143734655,347.72777244,0.0002096,2]
[376854150,1754143838869,-1536.3508781,0.00023082,2]
[376854151,1754143838878,-691.71199163,0.000232,2]
[376854152,1754143838887,-188.54203448,0.000232,2]
[376854153,1754143838896,-460.0,0.00023227,2]
[376854154,1754143838906,-500.0,0.00023352,2]
[376854155,1754143838915,-286.87138967,0.00023542,2]
[376854156,1754143838924,-505.14148021,0.00023707,2]
[376854157,1754143838933,-300.0,0.00023971,2]
[376854159,1754143838943,-300.0,0.00023971,2]
[376854161,1754143838952,-1200.0,0.00023972,2]
[376854163,1754143838961,-1200.0,0.00023972,2]
[376854165,1754143838969,-50000.0,0.00023972,2]
[376854167,1754143838979,-172.08481441,0.00023973,2]
[376854169,1754143838988,-500.0,0.00023973,2]
[376854170,1754143838997,-427.32035153,0.00023973,2]
[376854171,1754143839006,-500.0,0.00023973,2]
[376854172,1754143839016,-500.0,0.00023973,2]
[376854173,1754143839026,-500.0,0.00023973,2]
[376854174,1754143839036,-504.24656835,0.00023973,2]
[376854175,1754143839045,-502.37147298,0.00023973,2]
[376854176,1754143839054,-500.0,0.00023973,2]
[376854177,1754143839064,-500.0,0.00023973,2]
[376854178,1754143839073,-500.0,0.00023989,2]
[376854179,1754143839082,-160.28079856,0.00023989,2]
[376854180,1754143839091,-500.0,0.00023989,2]
[376854181,1754143839100,-500.0,0.00023989,2]
[376854182,1754143839109,-370.99809646,0.00023989,2]
[376854183,1754143839118,-500.0,0.00023989,2]
[376854184,1754143839127,-312.39109324,0.00023989,2]
[376854185,1754143839136,-500.0,0.00023989,2]
[376854186,1754143839145,-500.0,0.00023989,2]
[376854187,1754143839154,-500.0,0.00023989,2]
[376854188,1754143839163,-500.0,0.00023989,2]
[376854189,1754143839172,-500.0,0.00023989,2]
[376854190,1754143839181,-500.0,0.00023989,2]
[376854191,1754143839190,-500.0,0.00023989,2]
[376854192,1754143839199,-500.0,0.00023989,2]
[376854193,1754143839208,-500.0,0.00023989,2]
[376854194,1754143839217,-500.0,0.00023989,2]
[376854195,1754143839225,-500.0,0.00023989,2]
[376854196,1754143839234,-500.0,0.00023989,2]
[376854197,1754143839243,-500.0,0.00023989,2]
[376854198,1754143839252,-500.0,0.00023989,2]
[376854199,1754143839261,-500.0,0.00023989,2]
[376854200,1754143839270,-500.0,0.00023989,2]
[376854201,1754143839281,-500.0,0.00023989,2]
[376854202,1754143839290,-500.0,0.00023989,2]
[376854203,1754143839299,-500.0,0.00023989,2]
[376854204,1754143839309,-500.0,0.00023989,2]
[376854205,1754143839318,-500.0,0.00023989,2]
[376854206,1754143839327,-500.0,0.00023989,2]
[376854207,1754143839336,-500.0,0.00023989,2]
[376854208,1754143839346,-500.0,0.00023989,2]
[376854209,1754143839355,-500.0,0.00023989,2]
[376854210,1754143839364,-500.0,0.00023989,2]
[376854211,1754143839373,-500.0,0.00023989,2]
[376854212,1754143839382,-500.0,0.00023989,2]
[376854213,1754143839391,-500.0,0.00023989,2]
[376854214,1754143839400,-153.66030114,0.00023989,2]
[376854215,1754143839409,-500.0,0.00023989,2]
[376854216,1754143839418,-500.0,0.00023989,2]
[376854217,1754143839426,-500.0,0.00023989,2]
[376854218,1754143839435,-500.0,0.00023989,2]
[376854219,1754143839444,-500.0,0.00023989,2]
[376854220,1754143839453,-500.0,0.00023989,2]
[376854221,1754143839462,-500.0,0.00023989,2]
[376854222,1754143839470,-500.0,0.00023989,2]
[376854223,1754143839479,-500.0,0.00023989,2]
[376854224,1754143839489,-200.0,0.00023989,2]
[376854225,1754143839497,-500.0,0.00023989,2]
[376854226,1754143839506,-7383.57,0.00023989,2]
[376854227,1754143839515,-500.0,0.00023989,2]
[376854228,1754143839524,-100000.0,0.0002399,2]
[376854229,1754143839536,-410.39,0.00024,7]
[376854230,1754143839545,-1080.12856795,0.00024173,2]
[376854231,1754143839554,-345.72369511,0.00024173,2]
[376854232,1754143839563,-500.0,0.00024263,2]
[376854233,1754143839572,-158.37,0.00024269,6]
[376854234,1754143839581,-500.0,0.0002427,2]
[376854235,1754143839590,-174.24951118,0.0002427,2]
[376854236,1754143839599,-370000.0,0.00024271,2]
[376854237,1754143839608,-500.0,0.00024273,2]
[376854238,1754143839618,-168.18513638,0.00024273,2]
[376854239,1754143839628,-500.0,0.00024273,2]
[376854240,1754143839638,-500.0,0.00024273,2]
[376854241,1754143839647,-501.01654782,0.00024273,2]
[376854242,1754143839656,-500.92617682,0.00024273,2]
[376854243,1754143839666,-501.64334316,0.00024273,2]
[376854244,1754143839675,-500.0,0.00024273,2]
[376854245,1754143839685,-500.0,0.00024273,2]
[376854246,1754143839695,-500.0,0.00024273,2]
[376854247,1754143839705,-500.0,0.00024273,2]
[376854248,1754143839715,-500.0,0.00024273,2]
[376854249,1754143839724,-442.48622885,0.00024273,2]
[376854250,1754143839734,-500.0,0.00024273,2]
[376854251,1754143839744,-431.02658484,0.00024273,2]
[376854252,1754143839757,-500.0,0.00024273,2]
[376854253,1754143839767,-500.0,0.00024273,2]
[376854254,1754143839778,-500.0,0.00024273,2]
[376854255,1754143839788,-500.0,0.00024273,2]
[376854256,1754143839798,-500.0,0.00024273,2]
[376854257,1754143839807,-501.20491629,0.00024273,2]
[376854258,1754143839817,-500.0,0.00024273,2]
[376854259,1754143839826,-500.0,0.00024273,2]
[376854260,1754143839835,-3026.61,0.00024342,3]
[376854261,1754143839845,-2000.0,0.0002435,2]
[376854262,1754143839858,-150.0,0.0002437,2]
[376854263,1754143839868,-460.0,0.00024371,2]
[376854264,1754143839878,-460.0,0.00024371,2]
[376854265,1754143839887,-375.17888902,0.00024371,2]
[376854266,1754143839897,-200.0,0.0002445,15]
[376854267,1754143839907,-200.0,0.0002445,15]
[376854268,1754143839916,-200.0,0.0002445,15]
[376854269,1754143839925,-200.0,0.0002445,15]
[376854270,1754143839935,-200.0,0.0002445,15]
[376854271,1754143839946,-500.0,0.00024519,2]
[376854272,1754143839955,-1000.0,0.00024521,2]
[376854273,1754143839964,-1005.30809483,0.00024521,2]
[376854274,1754143839974,-1000.0,0.00024521,2]
[376854275,1754143839984,-928.66277833,0.00024521,2]
[376854276,1754143839994,-374.27831165,0.00024521,2]
[376854277,1754143840003,-500.0,0.00024537,2]
[376854278,1754143840013,-306.0,0.00024662,2]
[376854279,1754143840023,-290.0,0.00024782,2]
[376854280,1754143840034,-151.51,0.00024796,7]
[376854281,1754143840043,-857.51344888,0.000248,2]
[376854282,1754143840053,-839.74236167,0.000248,3]
[376854283,1754143840063,-12646.87439643,0.000248,3]
[376854284,1754143840072,-173.07,0.00024804,7]
[376854285,1754143840082,-500.0,0.00024811,2]
[376854287,1754143840091,-345.72369509,0.00024817,2]
[376854289,1754143840100,-1000.0,0.00024821,2]
[376854291,1754143840119,-1000.0,0.00024821,2]
[376854293,1754143840128,-507.99762055,0.00024821,2]
[376854294,1754143840138,-520.09512674,0.00024821,2]
[376854295,1754143840147,-1000.0,0.00024821,2]
[376854296,1754143840156,-500.0,0.00024821,2]
[376854297,1754143840165,-635.74493946,0.00024821,2]
[376854298,1754143840175,-1000.0,0.00024821,2]
[376854300,1754143840184,-500.0,0.00024821,2]
[376854302,1754143840193,-500.0,0.00024873,2]
[376854304,1754143840203,-500.0,0.00024873,2]
[376854306,1754143840212,-151.51,0.00024896,7]
[376854308,1754143840221,-231776.697391,0.000249,2]
[376854310,1754143840230,-160.0,0.000249,2]
[376854312,1754143840240,-173.07,0.00024904,7]
[376854314,1754143840249,-153.0,0.00024956,2]
[376854317,1754143840258,-151.51,0.00024996,7]
[376854319,1754143840268,-1001.16,0.00025,7]
[376854321,1754143840278,-173.07,0.00025004,7]
[376854323,1754143840288,-231.57249719,0.00025005,2]
[376854325,1754143840297,-151.51,0.00025096,7]
[376854328,1754143840307,-151.52,0.00025196,7]
[376854330,1754143840316,-7383.57,0.00025359,4]
[376854333,1754143840326,-1500.0,0.00025368,2]
[376854335,1754143840335,-260.0,0.00025448,2]
[376854337,1754143840345,-345.72369509,0.00025461,2]
[376854339,1754143840354,-1080.12856793,0.00025494,2]
[376854341,1754143840364,-151.0,0.000257,19]
[376854344,1754143840374,-500.0,0.00025745,2]
[376854346,1754143840383,-376.09418608,0.00025778,2]
[376854349,1754143840392,-5300.0,0.00025788,2]
[376854352,1754143840402,-2000.0,0.00025916,2]
[376854354,1754143840410,-347.72777244,0.0002596,2]
[376854357,1754143840420,-491.22980123,0.00025968,2]
[376854359,1754143840429,-300.0,0.00025996,2]
[376854362,1754143840439,-360.0,0.00025996,2]
[376854365,1754143840448,-1200.0,0.00025997,2]
[376854367,1754143840457,-410.39,0.00026,7]
[376854370,1754143840467,-151.0,0.00026,15]
[376854373,1754143840476,-551.74528737,0.00026093,2]
[376854375,1754143840485,-345.72369509,0.00026105,2]
[376854378,1754143840494,-500.0,0.00026135,2]
[376854380,1754143840503,-151.0,0.000263,12]
[376854381,1754143840513,-151.0,0.000263,17]
[376854383,1754143840522,-635.0,0.0002635,2]
[376854385,1754143840532,-407.0,0.00026364,2]
[376854386,1754143840542,-2500.0,0.00026464,2]
[376854388,1754143840551,-460.0,0.00026544,2]
[376854390,1754143840561,-151.0,0.000266,12]
[376854392,1754143840570,-151.0,0.000266,18]
[376854393,1754143840579,-7383.57,0.00026729,6]
[376854395,1754143840589,-172.59293609,0.00026749,2]
[376854397,1754143840599,-345.72369509,0.00026749,2]
[376854399,1754143840608,-151.1614,0.00026766,2]
[376854400,1754143840616,-1080.12856793,0.00026814,2]
[376854402,1754143840625,-200.0,0.00026823,15]
[376854404,1754143840635,-200.0,0.00026823,15]
[376854406,1754143840644,-200.0,0.00026823,15]
[376854407,1754143840653,-200.0,0.00026823,15]
[376854409,1754143840662,-200.0,0.00026823,15]
[376854410,1754143840671,-200.0,0.00026823,15]
[376854412,1754143840680,-200.0,0.00026823,15]
[376854414,1754143840689,-151.0,0.00026849,7]
[376854428,1754143840808,-151.0,0.00026849,7]
[376854431,1754143840856,-151.818332,0.00026849,7]
[376854433,1754143840866,-151.0,0.00026849,7]
[376854434,1754143840875,-151.0,0.00026849,7]
[376854436,1754143840884,-151.0,0.00026849,7]
[376854438,1754143840895,-151.0,0.00026849,7]
[376854440,1754143840904,-151.0,0.00026849,7]
[376854441,1754143840913,-151.0,0.00026849,7]
[376854443,1754143840922,-151.0,0.00026849,7]
[376854445,1754143840932,-151.0,0.00026849,7]
[376854447,1754143840942,-151.0,0.00026849,7]
[376854448,1754143840953,-151.0,0.00026849,7]
[376854450,1754143840963,-151.0,0.00026849,7]
[376854452,1754143840972,-151.0,0.00026849,7]
[376854454,1754143840982,-151.0,0.00026849,7]
[376854455,1754143840990,-151.0,0.00026849,7]
[376854457,1754143841000,-152.013099,0.00026849,7]
[376854459,1754143841009,-151.0,0.00026849,7]
[376854461,1754143841018,-151.0,0.00026849,7]
[376854462,1754143841029,-151.0,0.00026849,7]
[376854464,1754143841038,-220.977997,0.00026849,7]
[376854466,1754143841047,-151.0,0.00026849,7]
[376854467,1754143841056,-151.0,0.00026849,7]
[376854469,1754143841065,-151.0,0.00026849,7]
[376854471,1754143841075,-460.0,0.00026849,10]
[376854473,1754143841084,-151.0,0.00026849,7]
[376854474,1754143841093,-460.0,0.00026849,10]
[376854476,1754143841102,-178.17244351,0.00026849,10]
[376854478,1754143841111,-460.0,0.00026849,10]
[376854480,1754143841121,-460.0,0.00026849,10]
[376854481,1754143841130,-462.55631746,0.00026849,10]
[376854483,1754143841139,-168.38590766,0.00026849,10]
[376854485,1754143841148,-184.91321282,0.00026849,10]
[376854487,1754143841158,-283.17895427,0.00026849,10]
[376854488,1754143841168,-460.0,0.00026849,10]
[376854490,1754143841177,-460.0,0.00026849,10]
[376854492,1754143841187,-462.35566578,0.00026849,10]
[376854494,1754143841196,-253.93742996,0.00026849,10]
[376854495,1754143841205,-460.0,0.00026849,10]
[376854497,1754143841214,-460.0,0.00026849,10]
[376854499,1754143841223,-460.0,0.00026849,10]
[376854500,1754143841232,-462.35300803,0.00026849,10]
[376854502,1754143841241,-460.0,0.00026849,10]
[376854504,1754143841250,-460.0,0.00026849,10]
[376854506,1754143841259,-460.0,0.00026849,10]
[376854507,1754143841268,-462.4741188,0.00026849,10]
[376854509,1754143841279,-462.25730716,0.00026849,10]
[376854511,1754143841288,-460.0,0.00026849,10]
[376854513,1754143841297,-460.0,0.00026849,10]
[376854514,1754143841306,-460.0,0.00026849,10]
[376854516,1754143841315,-460.0,0.00026849,10]
[376854518,1754143841324,-514.3,0.00026849,10]
[376854520,1754143841334,-237.04778176,0.00026849,10]
[376854521,1754143841342,-461.78053114,0.00026849,10]
[376854523,1754143841351,-465.00686891,0.00026849,10]
[376854525,1754143841360,-460.33477492,0.00026849,10]
[376854527,1754143841371,-460.0,0.00026849,10]
[376854529,1754143841380,-460.0,0.00026849,10]
[376854530,1754143841389,-460.0,0.00026849,10]
[376854532,1754143841397,-248.88793424,0.00026849,10]
[376854534,1754143841406,-461.06615853,0.00026849,10]
[376854536,1754143841415,-460.0,0.00026849,10]
[376854537,1754143841426,-460.0,0.00026849,10]
[376854539,1754143841435,-460.0,0.00026849,10]
[376854541,1754143841445,-460.0,0.00026849,10]
[376854543,1754143841454,-460.0,0.00026849,10]
[376854544,1754143841463,-460.0,0.00026849,10]
[376854546,1754143841472,-460.0,0.00026849,10]
[376854548,1754143841481,-460.0,0.00026849,10]
[376854550,1754143841491,-460.0,0.00026849,10]
[376854551,1754143841500,-460.0,0.00026849,10]
[376854553,1754143841509,-460.0,0.00026849,10]
[376854555,1754143841518,-260.0,0.00026849,10]
[376854556,1754143841529,-460.0,0.00026849,10]
[376854558,1754143841539,-151.0,0.00026849,7]
[376854560,1754143841547,-151.0,0.00026849,7]
[376854562,1754143841556,-151.0,0.00026849,7]
[376854563,1754143841565,-460.0,0.00026849,10]
[376854565,1754143841574,-460.0,0.00026849,10]
[376854567,1754143841584,-465.3697881,0.00026849,10]
[376854569,1754143841593,-460.0,0.00026849,10]
[376854570,1754143841603,-460.0,0.00026849,10]
[376854572,1754143841613,-460.0,0.00026849,10]
[376854574,1754143841622,-460.0,0.00026849,10]
[376854576,1754143841631,-460.0,0.00026849,10]
[376854577,1754143841639,-460.0,0.00026849,10]
[376854579,1754143841649,-460.0,0.00026849,10]
[376854581,1754143841658,-460.0,0.00026849,10]
[376854583,1754143841667,-460.0,0.00026849,10]
[376854584,1754143841676,-460.0,0.00026849,10]
[376854586,1754143841686,-460.0,0.00026849,10]
[376854588,1754143841695,-460.0,0.00026849,10]
[376854590,1754143841704,-292.83700197,0.00026849,10]
[376854591,1754143841714,-461.27481302,0.00026849,10]
[376854593,1754143841723,-460.0,0.00026849,10]
[376854595,1754143841732,-460.0,0.00026849,10]
[376854597,1754143841741,-460.0,0.00026849,10]
[376854598,1754143841750,-460.0,0.00026849,10]
[376854600,1754143841759,-460.0,0.00026849,10]
[376854602,1754143841769,-207.55419325,0.00026849,10]
[376854604,1754143841779,-460.0,0.00026849,10]
[376854605,1754143841789,-464.92494187,0.00026849,10]
[376854607,1754143841797,-530.16592282,0.00026849,10]
[376854609,1754143841807,-460.0,0.00026849,10]
[376854611,1754143841816,-460.0,0.00026849,10]
[376854612,1754143841825,-460.0,0.00026849,10]
[376854614,1754143841834,-460.0,0.00026849,10]
[376854616,1754143841843,-460.0,0.00026849,10]
[376854618,1754143841854,-460.0,0.00026849,10]
[376854619,1754143841865,-461.72628164,0.00026849,10]
[376854621,1754143841874,-460.0,0.00026849,10]
[376854623,1754143841883,-460.0,0.00026849,10]
[376854625,1754143841892,-460.0,0.00026849,10]
[376854626,1754143841902,-460.0,0.00026849,10]
[376854628,1754143841912,-460.0,0.00026849,10]
[376854630,1754143841921,-460.0,0.00026849,10]
[376854632,1754143841931,-460.0,0.00026849,10]
[376854633,1754143841940,-460.0,0.00026849,10]
[376854635,1754143841950,-460.0,0.00026849,10]
[376854637,1754143841959,-460.0,0.00026849,10]
[376854639,1754143841968,-461.89227016,0.00026849,10]
[376854640,1754143841977,-462.75009355,0.00026849,10]
[376854642,1754143841987,-460.0,0.00026849,10]
[376854644,1754143841995,-460.0,0.00026849,10]
[376854646,1754143842005,-462.16298225,0.00026849,10]
[376854647,1754143842013,-462.37036742,0.00026849,10]
[376854649,1754143842023,-460.0,0.00026849,10]
[376854651,1754143842034,-460.0,0.00026849,10]
[376854653,1754143842043,-460.0,0.00026849,10]
[376854654,1754143842051,-460.0,0.00026849,10]
[376854656,1754143842060,-462.51841619,0.00026849,10]
[376854658,1754143842069,-460.0,0.00026849,10]
[376854660,1754143842078,-460.0,0.00026849,10]
[376854661,1754143842087,-460.0,0.00026849,10]
[376854663,1754143842096,-460.0,0.00026849,10]
[376854665,1754143842105,-463.54112199,0.00026849,10]
[376854667,1754143842114,-462.78358028,0.00026849,10]
[376854668,1754143842123,-460.0,0.00026849,10]
[376854670,1754143842131,-460.0,0.00026849,10]
[376854672,1754143842140,-460.0,0.00026849,10]
[376854674,1754143842149,-460.0,0.00026849,10]
[376854675,1754143842158,-460.0,0.00026849,10]
[376854677,1754143842168,-460.0,0.00026849,10]
[376854679,1754143842177,-460.0,0.00026849,10]
[376854681,1754143842186,-521.97369392,0.00026849,10]
[376854682,1754143842194,-460.0,0.00026849,10]
[376854684,1754143842203,-460.0,0.00026849,10]
[376854686,1754143842212,-460.0,0.00026849,10]
[376854688,1754143842223,-460.0,0.00026849,10]
[376854689,1754143842231,-460.0,0.00026849,10]
[376854691,1754143842241,-460.0,0.00026849,10]
[376854693,1754143842250,-460.0,0.00026849,10]
[376854695,1754143842259,-460.0,0.00026849,10]
[376854696,1754143842267,-460.0,0.00026849,10]
[376854698,1754143842277,-460.0,0.00026849,10]
[376854700,1754143842286,-493.26,0.00026849,10]
[376854702,1754143842295,-460.0,0.00026849,10]
[376854703,1754143842304,-460.0,0.00026849,10]
[376854705,1754143842313,-460.0,0.00026849,10]
[376854707,1754143842325,-475.60037922,0.00026849,10]
[376854709,1754143842334,-460.0,0.00026849,10]
[376854710,1754143842343,-565.97406261,0.00026849,10]
[376854712,1754143842352,-460.0,0.00026849,10]
[376854714,1754143842361,-460.0,0.00026849,10]
[376854716,1754143842371,-462.85100801,0.00026849,10]
[376854718,1754143842380,-460.80371312,0.00026849,10]
[376854719,1754143842389,-460.0,0.00026849,10]
[376854721,1754143842398,-460.0,0.00026849,10]
[376854723,1754143842407,-462.70588176,0.00026849,10]
[376854725,1754143842417,-460.0,0.00026849,10]
[376854726,1754143842425,-460.0,0.00026849,10]
[376854728,1754143842435,-460.0,0.00026849,10]
[376854730,1754143842444,-460.0,0.00026849,10]
[376854732,1754143842453,-437.62393445,0.00026849,10]
[376854734,1754143842463,-460.0,0.00026849,10]
[376854735,1754143842472,-460.0,0.00026849,10]
[376854737,1754143842482,-460.0,0.00026849,10]
[376854739,1754143842491,-460.0,0.00026849,10]
[376854741,1754143842500,-151.0,0.00026849,7]
[376854743,1754143842509,-460.0,0.00026849,10]
[376854744,1754143842518,-460.0,0.00026849,10]
[376854746,1754143842530,-460.0,0.00026849,10]
[376854748,1754143842539,-234.86,0.00026849,10]
[376854750,1754143842548,-460.83903585,0.00026849,10]
[376854752,1754143842557,-461.59944253,0.00026849,10]
[376854753,1754143842566,-460.0,0.00026849,10]
[376854755,1754143842575,-460.0,0.00026849,10]